Cogmind - Beta 10.2 @@@ ROGUE MODE // 2021.06.01 @ 09:53:54 Player: Jamuson Result: Destroyed by G-47 Trooper with Particle Gun Performance ------------- Evolutions (1) 500 Regions Visited (6) 1200 Robots Destroyed (27) 135 Value Destroyed (1006) 1006 Prototype IDs (5) 100 Alien Tech Used (0) 0 Bonus (300) 300 TOTAL SCORE: 3241 Bonus ------- Aligned with FarCom 300 Cogmind --------- Core Integrity 0/400 Matter 224/300 Energy 100/100 System Corruption 0% Temperature Cool (9) Movement Core (550) Ox10 Location -8/Mines Parts ------- > --- POWER (1) -------- (None) > --- PROPULSION (2) --- (None) > --- UTILITY (4) ------ High-capacity Storage Unit Armor Integrity Analyzer > --- WEAPON (2) ------- (None) > --- INVENTORY (12) --- Armored Treads Armored Treads Hardened Light Armor Plating Hardened Light Armor Plating PSU Rigger Peak State ------------ > --- POWER ------------ Improved Ion Engine > --- PROPULSION ------- Armored Treads Armored Treads > --- UTILITY ---------- Large Storage Unit Armor Integrity Analyzer Light Armor Plating Trap Reconfigurator > --- WEAPON ----------- EM Shotgun Heavy Assault Rifle > --- INVENTORY -------- Improved Ion Engine Armored Treads Armored Treads Hardened Light Armor Plating Hardened Light Armor Plating Hardened Light Armor Plating Heavy Assault Rifle Improved Light Cannon EMP Blaster Mini Grenade Launcher [Rating: 27] Favorites ----------- Power Improved Ion Engine Engine Improved Ion Engine Propulsion Armored Treads Treads Armored Treads Leg Aluminum Leg Wheel Compact Wheel Utility Light Armor Plating Device Improved Heat Sink Storage Large Storage Unit Processor Armor Integrity Analyzer Protection Light Armor Plating Weapon Heavy Assault Rifle Energy Gun EM Shotgun Ballistic Gun Heavy Assault Rifle Ballistic Cannon Improved Light Cannon Launcher Mini Grenade Launcher Build | -11 -10 -10 -9 -9 -9 -8 ------- Run | Scr Mat Min Mat Min Exi Min Slots Evolved 2 | . . . 2 . . . Power . | . . . . . . . Propulsion . | . . . . . . . Utility 2 | . . . 2 . . . Weapon . | . . . . . . . Parts Attached 47 | 5 7 6 18 1 4 6 Power 5 | 1 1 1 1 . . 1 Engine 5 | 1 1 1 1 . . 1 Core . | . . . . . . . Reactor . | . . . . . . . Propulsion 11 | 2 1 . 8 . . . Treads 4 | . . . 4 . . . Leg 4 | . . . 4 . . . Wheel 3 | 2 1 . . . . . Hover . | . . . . . . . Flight . | . . . . . . . Utility 13 | . 1 3 4 1 3 1 Device 5 | . . 2 . 1 2 . Storage 2 | . . . 1 . 1 . Processor 2 | . . 1 1 . . . Hackware . | . . . . . . . Protection 4 | . 1 . 2 . . 1 Artifact . | . . . . . . . Weapon 18 | 2 4 2 5 . 1 4 Energy Gun 6 | 1 2 . 2 . . 1 Energy Cannon . | . . . . . . . Ballistic Gun 6 | 1 1 1 2 . 1 . Ballistic Cannon 1 | . . . . . . 1 Launcher 5 | . 1 1 1 . . 2 Special Weapon . | . . . . . . . Impact Weapon . | . . . . . . . Slashing Weapon . | . . . . . . . Piercing Weapon . | . . . . . . . Special Melee Weapon . | . . . . . . . Unidentified Prototypes 3 | . . 1 . . 2 . Parts Lost 14 | . . . 5 . . 9 Power 2 | . . . . . . 2 Propulsion 4 | . . . 2 . . 2 Utility 3 | . . . 1 . . 2 Weapon 5 | . . . 2 . . 3 Highest Loss Streak 6 | . . . 4 . . 6 Average Slot Usage (%) 82 | . 81 91 77 91 94 64 Engine 11 | . 14 14 11 11 11 6 Treads 8 | . . . 6 22 22 16 Leg 5 | . . . 12 . . . Wheel 8 | . 28 28 1 . . . Device 2 | . . 8 . 2 5 . Storage 6 | . . . 7 11 11 11 Processor 7 | . . 8 8 11 11 11 Protection 8 | . 10 3 8 11 11 5 Energy Gun 9 | . 14 14 7 11 11 4 Ballistic Gun 11 | . 13 11 13 11 11 5 Launcher 1 | . . 2 1 . . 2 Naked Turns . | . . . . . . . Heaviest Build 48 | 9 14 14 32 33 48 48 Greatest Support 40 | 26 32 32 40 40 40 40 Greatest Overweight (x) 3 | 2 . . 3 . 1 1 Average Overweight (x) . | . . . . . . . Largest Inventory Capacity 18 | 4 4 4 10 10 18 12 Average Capacity 7 | 4 4 4 8 10 10 12 Most Carried 10 | 1 4 4 10 10 10 10 Average Carried 6 | . 3 3 5 10 10 7 Final Capacity 12 | 4 4 4 10 10 12 12 Final Carried 10 | 1 4 4 10 10 10 5 Class Distribution -------------------- 100% | Mutant Dominant Class ---------------- Mutant | -10/Materials Mutant | -10/Mines Mutant | -9/Materials Mutant | -9/Mines Mutant | -9/Exiles Mutant | -8/Mines Resources | -11 -10 -10 -9 -9 -9 -8 ----------- Run | Scr Mat Min Mat Min Exi Min Matter Collected 944 | 219 127 171 350 20 . 57 Remotely . | . . . . . . . Salvage Created 1033 | . 271 8 513 60 . 181 Parts 57 | . 11 . 38 2 . 6 Haulers Intercepted . | . . . . . . . Recyclers Shooed . | . . . . . . . Parts Field Recycled . | . . . . . . . Retrieved Matter . | . . . . . . . Parts Self-Destructed . | . . . . . . . Prevented . | . . . . . . . Kills | -11 -10 -10 -9 -9 -9 -8 ------- Run | Scr Mat Min Mat Min Exi Min Combat Hostiles Destroyed 28 | . 9 3 10 1 . 5 Guns 16 | . 6 . 8 1 . 1 Cannons 2 | . . . . . . 2 AOE 10 | . 3 3 2 . . 2 Classes Destroyed 6 | . 2 1 2 . . 1 Watcher 2 | . . . 2 . . . Swarmer 3 | . 3 . . . . . Grunt 15 | . 6 . 4 1 . 4 Duelist 1 | . . . . . . 1 Sentry 6 | . . . 6 . . . Assembled 3 | . . 3 . . . . Best Kill Streak 5 | . 3 3 2 1 . 5 Combat Bots Only 5 | . 3 3 2 1 . 5 Max Kills in Single Turn 2 | . 1 2 1 1 . 2 Gunslinging . | . . . . . . . Exploded 2 | . 1 2 1 . . 2 Melee . | . . . . . . . Uniques/NPCs Destroyed . | . . . . . . . Combat | -11 -10 -10 -9 -9 -9 -8 -------- Run | Scr Mat Min Mat Min Exi Min Damage Taken 2645 | . 270 82 485 . . 1808 Core 458 | . 35 12 38 . . 373 Absorbed by Shields . | . . . . . . . Core Remaining (%) 90 | 100 . 81 . . . . Volleys Fired 99 | . 32 4 41 2 . 20 Largest 2 | . 2 2 2 2 . 2 Hottest 85 | . 85 70 68 68 . 84 Shots Fired 172 | . 58 6 70 4 . 34 Gun 143 | . 55 3 67 4 . 14 Cannon 16 | . . . . . . 16 Launcher 13 | . 3 3 3 . . 4 Special . | . . . . . . . Kinetic 114 | . 29 1 55 2 . 27 Thermal 21 | . 21 . . . . . Explosive 10 | . 3 3 3 . . 1 Electromagnetic 27 | . 5 2 12 2 . 6 Robot Hit Streak 12 | . 12 4 9 3 . 11 Robot Miss Streak 4 | . 4 1 3 1 . 2 Penetration Max . | . . . . . . . Secondary Targets . | . . . . . . . Shots Hit Robots 116 | . 37 4 47 3 . 25 Core Hits 61 | . 16 4 24 2 . 15 Critical Hits . | . . . . . . . Critical Kills . | . . . . . . . Critical Parts Destroyed . | . . . . . . . Melee Attacks . | . . . . . . . Impact . | . . . . . . . Slashing . | . . . . . . . Piercing . | . . . . . . . Sneak Attacks . | . . . . . . . Combat Hostiles . | . . . . . . . Follow-up Attacks . | . . . . . . . Damage Inflicted 2356 | . 738 194 779 21 . 624 Guns 1384 | . 511 23 671 21 . 158 Cannons 294 | . . . . . . 294 Explosions 640 | . 227 171 108 . . 134 Melee . | . . . . . . . Ramming 38 | . . . . . . 38 Kinetic 1177 | . 235 . 527 . . 415 Thermal 254 | . 254 . . . . . Explosive 596 | . 227 171 108 . . 90 Electromagnetic 291 | . 22 23 144 21 . 81 Impact . | . . . . . . . Slashing . | . . . . . . . Piercing . | . . . . . . . Highest Corruption . | . . . . . . . Average Corruption . | . . . . . . . Corruption Purged . | . . . . . . . Overload Shots . | . . . . . . . Overflow Damage 10 | . 10 . . . . . Projectiles . | . . . . . . . Explosions 10 | . 10 . . . . . Melee . | . . . . . . . Knockbacks 8 | . . . . . . 8 Impact . | . . . . . . . Kinetic 8 | . . . . . . 8 Secondary . | . . . . . . . Self-Inflicted Damage 17 | . . . . . . 17 Shots 1 | . . . . . . 1 Rammed 16 | . . . . . . 16 Targets Rammed 16 | . . . . . . 16 Kicked . | . . . . . . . Crushed . | . . . . . . . Highest Temperature 623 | . 168 29 24 18 . 623 Average Temperature 109 | . 55 21 6 9 . 267 Received Heat Transfer 1274 | . 129 20 180 . . 945 Effects 9 | . . . . . . 9 Shutdowns 1 | . . . . . . 1 Energy Bleed 3 | . . . . . . 3 Interference 1 | . . . . . . 1 Short Circuit 2 | . . . . . . 2 Damage (minor) 2 | . . . . . . 2 Siege Activations . | . . . . . . . Robots Corrupted . | . . . . . . . Combat Hostiles . | . . . . . . . Parts Fried 1 | . . . 1 . . . Impact Corruptions . | . . . . . . . Robots Melted . | . . . . . . . Combat Hostiles . | . . . . . . . Parts Melted . | . . . . . . . Heat Transferred 666 | . 666 . . . . . Parts Sabotaged . | . . . . . . . Parts Stolen . | . . . . . . . Parts Stripped . | . . . . . . . Power Chain Reactions . | . . . . . . . Missiles Intercepted . | . . . . . . . Alert | -11 -10 -10 -9 -9 -9 -8 ------- Run | Scr Mat Min Mat Min Exi Min Peak Influence 270 | . 270 65 190 60 . 81 Initial 30 | . . 5 5 30 . . Average 97 | . 119 38 128 42 . 34 Maximum Alert Level 1 | . 1 . . . . . Low Security (%) 96 | 100 79 100 100 100 . 100 Level 1 3 | . 20 . . . . . Level 2 . | . . . . . . . Level 3 . | . . . . . . . Level 4 . | . . . . . . . Level 5 . | . . . . . . . High Security . | . . . . . . . Max Security . | . . . . . . . Squads Dispatched 4 | . 1 . 3 . . . Investigation 1 | . . . 1 . . . Extermination . | . . . . . . . Reinforcement 3 | . 1 . 2 . . . Assault . | . . . . . . . Garrison . | . . . . . . . Intercept . | . . . . . . . Construction Impeded . | . . . . . . . Haulers Reinforced . | . . . . . . . Stealth | -11 -10 -10 -9 -9 -9 -8 --------- Run | Scr Mat Min Mat Min Exi Min Distress Signals 3 | . . . 3 . . . Communications Jammed . | . . . . . . . Distress Signals . | . . . . . . . Times Spotted 60 | . 17 9 26 2 . 6 Peak Tracking Total 5 | . 3 4 4 2 . 5 Tactical Retreats 7 | . 2 2 3 . . . Traps | -11 -10 -10 -9 -9 -9 -8 ------- Run | Scr Mat Min Mat Min Exi Min Traps Triggered 2 | . . . 2 . . . Indirectly . | . . . . . . . Trap Hack Attempts . | . . . . . . . Triggered . | . . . . . . . Disarmed . | . . . . . . . Reprogrammed . | . . . . . . . Reused . | . . . . . . . Traps Extracted . | . . . . . . . Installed . | . . . . . . . Triggered . | . . . . . . . Machines | -11 -10 -10 -9 -9 -9 -8 ---------- Run | Scr Mat Min Mat Min Exi Min Machines Disabled 1 | . . . 1 . . . Max in Single Turn 1 | . . . 1 . . . Machines Sabotaged . | . . . . . . . Garrisons Compromised . | . . . . . . . Overloaded Fab Kills . | . . . . . . . Fab Network Shutdowns . | . . . . . . . Hacking | -11 -10 -10 -9 -9 -9 -8 --------- Run | Scr Mat Min Mat Min Exi Min Machines Accessed 10 | . 5 1 3 . 1 . Terminals 8 | . 5 . 3 . . . Fabricators . | . . . . . . . Repair Stations . | . . . . . . . Recycling Units . | . . . . . . . Scanalyzers . | . . . . . . . Garrison Access . | . . . . . . . Total Hacks 31 | . 14 1 15 . 1 . Successful 19 | . 10 1 7 . 1 . Failed 12 | . 4 . 8 . . . Catastrophic 1 | . 1 . . . . . Database Lockouts . | . . . . . . . Manual 20 | . 8 . 10 . 2 . Terminals 29 | . 14 . 15 . . . Fabricators . | . . . . . . . Repair Stations . | . . . . . . . Recycling Units . | . . . . . . . Scanalyzers . | . . . . . . . Garrison Access . | . . . . . . . Terminal Hacks 11 | . 6 1 3 . 1 . Record 1 | . . . . . 1 . Prototype ID Bank 1 | . . . 1 . . . Open Door 1 | . . 1 . . . . Branch Access Points 1 | . 1 . . . . . Emergency Access Points 1 | . . . 1 . . . Alert Level 3 | . 2 . 1 . . . Unreport Threat 2 | . 2 . . . . . Zone Layout 1 | . 1 . . . . . Fabricator Hacks . | . . . . . . . Repair Station Hacks . | . . . . . . . Recycling Unit Hacks . | . . . . . . . Scanalyzer . | . . . . . . . Garrison Access Hacks . | . . . . . . . Unauthorized Hacks 8 | . 4 . 4 . . . Terminals 8 | . 4 . 4 . . . Botnet 7 | . 4 . 3 . . . Operators 1 | . . . 1 . . . Fabricators . | . . . . . . . Repair Stations . | . . . . . . . Recycling Units . | . . . . . . . Scanalyzers . | . . . . . . . Garrison Access . | . . . . . . . Data Cores Recovered . | . . . . . . . Used . | . . . . . . . Hacking Detections 5 | . 3 . 2 . . . Full Trace Events . | . . . . . . . Feedback Events . | . . . . . . . Feedback Blocked . | . . . . . . . Robot Schematics Acquired . | . . . . . . . Robots Built . | . . . . . . . Matter . | . . . . . . . Time . | . . . . . . . Total Robot Build Rating . | . . . . . . . Part Schematics Acquired . | . . . . . . . Parts Built . | . . . . . . . Matter . | . . . . . . . Time . | . . . . . . . Total Part Build Rating . | . . . . . . . Parts Repaired . | . . . . . . . Time . | . . . . . . . Parts Recycled . | . . . . . . . Recycled Matter . | . . . . . . . Retrieved Matter . | . . . . . . . Retrieved Components . | . . . . . . . Parts Scanalyzed . | . . . . . . . Part Schematics Acquired . | . . . . . . . Parts Damaged . | . . . . . . . Bothacking | -11 -10 -10 -9 -9 -9 -8 ------------ Run | Scr Mat Min Mat Min Exi Min Used RIF Installer . | . . . . . . . Robots Hacked . | . . . . . . . Non-combat . | . . . . . . . Combat . | . . . . . . . Robot Hacks Applied . | . . . . . . . Relay Couplers Released . | . . . . . . . Robots Rewired . | . . . . . . . Allies Hacked . | . . . . . . . Hacks Repelled . | . . . . . . . Allies | -11 -10 -10 -9 -9 -9 -8 -------- Run | Scr Mat Min Mat Min Exi Min Total Allies . | . . . . . . . Largest Group . | . . . . . . . Highest-Rated Group . | . . . . . . . Highest-Rated Ally . | . . . . . . . Total Orders . | . . . . . . . Ally Attacks . | . . . . . . . Total Damage . | . . . . . . . Kills . | . . . . . . . Allies Corrupted . | . . . . . . . Allies Melted . | . . . . . . . Intel | -11 -10 -10 -9 -9 -9 -8 ------- Run | Scr Mat Min Mat Min Exi Min Robot Analysis Total . | . . . . . . . Derelict Logs Recovered 2 | . . 2 . . . . Drone Launches . | . . . . . . . Drone Recoveries . | . . . . . . . Exploration | -11 -10 -10 -9 -9 -9 -8 ------------- Run | Scr Mat Min Mat Min Exi Min Turns Passed 2966 | 38 429 439 1224 79 536 221 Spaces Moved 1847 | 34 314 411 691 42 308 47 Core 14 | 9 . . 5 . . . Treads 603 | . . . 206 42 308 47 Legs 404 | . . . 404 . . . Wheels 826 | 25 314 411 76 . . . Hover . | . . . . . . . Flight . | . . . . . . . Fastest Speed 50 | 50 90 100 100 170 170 170 Average Speed 132 | 86 91 100 148 170 171 186 Slowest Speed 210 | 150 100 100 210 170 190 190 Overloaded Moves . | . . . . . . . Propulsion Burnouts . | . . . . . . . Robots Hopped . | . . . . . . . Cave-ins Triggered . | . . . . . . . Exploration Rate (%) 44 | 3 61 94 54 23 64 11 Regions Visited 6 Branch Regions 4 Pre-discovered Areas 1 | . . . . 1 . . Known Exits Taken 1 | . 1 . . . . . Unknown Exits Taken 5 | 1 . 1 1 1 1 . Scrap Searched 2 | . . 1 . 1 . . Spaces Dug . | . . . . . . . Terrain Destroyed 94 | . 27 24 32 . . 11 Melee . | . . . . . . . Projectile . | . . . . . . . AOE 94 | . 27 24 32 . . 11 Terrain Rammed . | . . . . . . . Walls Destroyed . | . . . . . . . Machines Disabled . | . . . . . . . Actions | -11 -10 -10 -9 -9 -9 -8 --------- Run | Scr Mat Min Mat Min Exi Min Total 2155 | 39 398 433 820 45 316 104 Wait 108 | . 37 7 50 1 . 13 Move 1841 | 33 313 410 690 41 307 47 Hop . | . . . . . . . Pick Up 16 | 1 4 . 11 . . . Fast Attach 24 | 5 2 3 10 1 3 . Attach 9 | . 1 . 3 . . 5 Detach 3 | . 1 1 . . 1 . Swap 14 | . 4 3 5 . 1 1 Drop 25 | . 4 5 10 . 4 2 Fire 99 | . 32 4 41 2 . 20 Melee . | . . . . . . . Ram 8 | . . . . . . 8 Kick . | . . . . . . . Crush 8 | . . . . . . 8 Escape Stasis . | . . . . . . . Rewire . | . . . . . . . Trap . | . . . . . . . Miscellaneous . | . . . . . . . Route ------- -11/Scrapyard -10/Materials (discovered 3 exits: *Mat x2 / *Min) -10/Mines (discovered 2 exits: *Mat x2) -9/Materials (discovered 2 exits: [*Min x2]) -9/Mines -9/Exiles -8/Mines History --------- Turn | Location | Event 19 | -11/Scrapyard | Discovered new exit (range 16) 39 | -11/Scrapyard | Entered Materials 131 | -10/Materials | Identified exit to Mines 215 | -10/Materials | Discovered new exit (range 16) 316 | -10/Materials | Build established: Mutant 396 | -10/Materials | Discovered new exit (range 16) 468 | -10/Materials | Entered Mines 477 | -10/Mines | Discovered new exit (range 6) 521 | -10/Mines | Discovered new exit (range 10) 552 | -10/Mines | Assembled infested the area 748 | -10/Mines | Learned Materials terminal intel 767 | -10/Mines | Found a hidden stash of uninstalled traps 821 | -10/Mines | Found the Drone Emporium 829 | -10/Mines | Found Prototype Device 829 | -10/Mines | Identified Decoy Drone Bay 857 | -10/Mines | Learned Materials emergency access door positions 907 | -10/Mines | Entered Materials 907 | -9/Materials | Evolved 2 slots: Utility x2 909 | -9/Materials | Loaded intel: 12 terminal locations 1029 | -9/Materials | Lost 4 parts (2n1u1w) 1171 | -9/Materials | Met 8R-AWN 1236 | -9/Materials | Discovered new exit (range 16) 1810 | -9/Materials | Discovered new exit (range 13) 2131 | -9/Materials | Entered Mines 2132 | -9/Mines | Learned location of Storage (-7) 2132 | -9/Mines | Followed 8R-AWN into the Mines 2203 | -9/Mines | Discovered new exit (range 5) 2210 | -9/Mines | Entered Exiles 2251 | -9/Exiles | Welcomed by 8R-AWN 2280 | -9/Exiles | Met EX-HEX 2328 | -9/Exiles | Met EX-BIN 2355 | -9/Exiles | Aligned with FarCom system 2357 | -9/Exiles | Given EX-Vault access code 2471 | -9/Exiles | Opened EX-Vault 2481 | -9/Exiles | Found Prototype Device 2481 | -9/Exiles | Identified Trap Reconfigurator 2487 | -9/Exiles | Found Prototype Device 2487 | -9/Exiles | Identified PSU Rigger 2526 | -9/Exiles | Warned to stay clear of 0b10 Research branches 2606 | -9/Exiles | Met EX-DEC 2722 | -9/Exiles | Discovered new exit (range 14) 2746 | -9/Exiles | Left Exiles lab with PSU Rigger 2746 | -9/Exiles | Entered Mines 2898 | -8/Mines | Lost 6 parts (2p2u2w) 2908 | -8/Mines | Core integrity fell below 50% 2936 | -8/Mines | Core integrity fell below 20% 2954 | -8/Mines | Lost 3 parts (2n1w) 2967 | -8/Mines | Destroyed by G-47 Trooper with Particle Gun Last Messages --------------- 02943_ U-05 Engineer lays Concrete. 02945_ Slammed into G-47 Trooper. 02945_ K-01 Serf collects debris. 02946_ U-05 Engineer lays Concrete. 02946_ R-06 Scavenger collects Structural Scanner. 02947_ U-05 Engineer lays Concrete. 02949_ U-05 Engineer builds a Wall. 02949_ G-47 Trooper IFF system glitched. 02951_ Slammed into G-47 Trooper. 02951_ Armor Integrity Analyzer permanently disabled. 02951_ Destabilizing: Short circuit. 02952_ Acquired 16 matter. 02953_ U-05 Engineer lays Concrete. 02956_ Slammed into G-47 Trooper. 02957_ U-05 Engineer builds a Wall. 02957_ G-47 Trooper IFF system glitched. 02957_ R-06 Scavenger destroyed. 02959_ U-05 Engineer destroyed. 02962_ Slammed into G-47 Trooper. 02962_ K-01 Serf collects debris. Map ----- +----------------------------------------------------+ | ??????????????????????????????????????????????? | | ??????????????????????????????????????????????? | | ??????????????????????????????????????????????? | | ??????????????????????????????????????????????? | | ??????????????????????????????????????????????? | | ??????????????????????????????????????????????? | | ??????????????????????????????????????????????? | | ???????????????#??????????????????????????????? | | ?????? ?????? ??????????????????????????????? | | ?????? ?????? ??????????????????????????????? | | ?????? ?????? #?????????????????????????????? | | ?????? ?????? ?????????????????????????????? | | ?????? ??????# ?????????????????????????????? | | ?????? ??????# #????????????????????????????? | | ?????? ??????#$ ????????????????????????????? | | ?????? ??????# #????????????????????????????? | | ??????# #??????# #????????????????????????????? | | ??????# #??????# #????????????????????????????? | | ??????# #??????# ##???????????????????????????? | | ??????# #??????# ##??????????????????????????? | | ??????# #??????# ##?????????????????????????? | | ??????# #?????## ####??????????????????????? | | ??????# #???### ##?????????????????????? | | ??????# ##### ! ##????????????????????? | | ??????# k %!##????????????????????? | | ??????###### ##%g@###????????????????????? | | ??????????# ## !%%##?????????????????????? | | ?????????# ###]%!##?????????????????????? | | ????????# ###!!##?????????????????????? | | ???????# ## ###= ##?????????????????????? | | ???????# #?## #?# ##?????????????????????? | | ???????# #???## ##?# ??????????????????????? | | ???????##?????####??# ?????????????????????? | | ????????????????????## ????????????????????? | | ?????????????????????## ????????????????????? | | ??????????????????????? ???????????????????? | | ??????????????????????? ??????????????????? | | ???????????????????????## ?????????????????? | | ?????????????????????????# ?????????????????? | | ??????????????????????????# ????????????????? | | ???????????????????????????# #???????????????? | | ??????????????????????????????????????????????? | | ??????????????????????????????????????????????? | | ??????????????????????????????????????????????? | | ??????????????????????????????????????????????? | | ??????????????????????????????????????????????? | | ??????????????????????????????????????????????? | | ??????????????????????????????????????????????? | | ??????????????????????????????????????????????? | | ??????????????????????????????????????????????? | +----------------------------------------------------+ Best States ------------- Heat Dissipation 42 Energy Generation 12 Energy Capacity 265 Matter Stores 300 Matter Capacity 300 Sight Range 16 Terrain Scan Range 14 Terrain Scan Density 60 Armor Coverage 150 Evasion (%) 42 Armor Integrity Analysis 33 Recoil Reduction 2 Item Schematics ----------------- None Robot Schematics ------------------ None Fabricated ------------ Nothing Alien Tech Used ----------------- None Achievements -------------- None Challenges ------------ None Game ------ Seed SmartbombCoolingStreamer Manual? 0 Play Time 00:46:27 Cumulative 118.4 hours Start 2021.05.27 @ 09:36:24 End 2021.06.01 @ 09:53:54 Sessions 3 Manual Loads 0 Difficulty Rogue Special Mode None Game No. 36 Rogue 29 Adventurer 0 Explorer 7 Win Type - Total 1 Types 0/0/1/0/0/0/0/0/0 Lore% 58 Gallery% 53 Achievement% 42 Wizard Run 0 Options --------- ASCII 0 Keyboard 0 Movement Numpad Keybinds 0 Fullscreen 1 Font 18/SmallcapsGlow Map View 76x50 Tactical HUD 1 Map Filters NONE Filters NONE Steam 1 RUN: 8c157a70-972f-4f7b-ab08-42ff21753234